fUSD/lending_fUSD_20240317
["ID","MTS","AMOUNT","RATE_DAILY","PERIOD"]
[319333404,1710667840310,-586.10083048,0.00015479,2]
[319333406,1710667840319,-500.0,0.00015479,2]
[319333408,1710667840328,-500.0,0.00015479,2]
[319333410,1710667840339,-500.0,0.00015479,2]
[319333412,1710667840348,-500.0,0.00015479,2]
[319333414,1710667840357,-500.0,0.00015479,2]
[319333416,1710667840366,-500.0,0.00015479,2]
[319333418,1710667840375,-172.49,0.00015479,2]
[319333419,1710667840385,-500.0,0.00015479,2]
[319333420,1710667840393,-500.0,0.00015479,2]
[319333421,1710667840402,-500.0,0.00015479,2]
[319333422,1710667840411,-500.0,0.00015479,2]
[319333423,1710667840420,-329.73932369,0.00015479,2]
[319333424,1710667840429,-2358.24,0.00015479,2]
[319333425,1710667840439,-2358.24,0.00015479,2]
[319333426,1710667840448,-2358.24,0.00015479,2]
[319333427,1710667840456,-2358.24,0.00015479,2]
[319333428,1710667840465,-2358.24,0.00015479,2]
[319333429,1710667840473,-2358.24,0.00015479,2]
[319333430,1710667840482,-2358.24,0.00015479,2]
[319333431,1710667840491,-2358.24,0.00015479,2]
[319333432,1710667840500,-500.0,0.00015479,2]
[319333433,1710667840508,-522.04784968,0.00015479,2]
[319333434,1710667840517,-505.68709895,0.00015479,2]
[319333435,1710667840526,-500.0,0.00015479,2]
[319333436,1710667840535,-500.0,0.00015479,2]
[319333437,1710667840544,-500.0,0.00015479,2]
[319333438,1710667840553,-500.0,0.00015479,2]
[319333439,1710667840562,-500.0,0.00015479,2]
[319333440,1710667840572,-307.73562121,0.00015479,2]
[319333441,1710667840581,-500.0,0.00015479,2]
[319333442,1710667840591,-500.0,0.00015479,2]
[319333443,1710667840600,-500.0,0.00015479,2]
[319333444,1710667840609,-500.0,0.00015479,2]
[319333445,1710667840617,-531.04573978,0.00015479,2]
[319333446,1710667840626,-500.0,0.00015479,2]
[319333447,1710667840635,-500.0,0.00015479,2]
[319333448,1710667840643,-502.44741965,0.00015479,2]
[319333449,1710667840653,-502.22496098,0.00015479,2]
[319333450,1710667840661,-500.0,0.00015479,2]
[319333451,1710667840670,-521.68166101,0.00015479,2]
[319333452,1710667840679,-317.06360293,0.00015479,2]
[319333453,1710667840688,-500.0,0.00015479,2]
[319333454,1710667840697,-500.0,0.00015479,2]
[319333455,1710667840706,-500.0,0.00015479,2]
[319333456,1710667840715,-500.0,0.00015479,2]
[319333457,1710667840725,-294.44992536,0.00015479,2]
[319333458,1710667840734,-500.0,0.00015479,2]
[319333459,1710667840744,-500.0,0.00015479,2]
[319333460,1710667840753,-500.0,0.00015479,2]
[319333461,1710667840763,-500.0,0.00015479,2]
[319333462,1710667840773,-500.0,0.00015479,2]
[319333463,1710667840782,-500.0,0.00015479,2]
[319333464,1710667840791,-500.0,0.00015479,2]
[319333465,1710667840800,-500.0,0.00015479,2]
[319333466,1710667840809,-500.0,0.00015479,2]
[319333467,1710667840818,-500.0,0.00015479,2]
[319333468,1710667840827,-500.0,0.00015479,2]
[319333469,1710667840836,-500.0,0.00015479,2]
[319333470,1710667840846,-500.0,0.00015479,2]
[319333471,1710667840855,-500.0,0.00015479,2]
[319333472,1710667840864,-500.0,0.00015479,2]
[319333473,1710667840873,-500.0,0.00015479,2]
[319333474,1710667840883,-500.0,0.00015479,2]
[319333475,1710667840892,-500.0,0.00015479,2]
[319333476,1710667840902,-601.10564744,0.00015479,2]
[319333477,1710667840911,-503.53866705,0.00015479,2]
[319333478,1710667840921,-500.0,0.00015479,2]
[319333479,1710667840930,-503.65505483,0.00015479,2]
[319333480,1710667840939,-500.0,0.00015479,2]
[319333481,1710667840947,-500.0,0.00015479,2]
[319333482,1710667840957,-500.0,0.00015479,2]
[319333483,1710667840966,-500.0,0.00015479,2]
[319333484,1710667840975,-500.0,0.00015479,2]
[319333485,1710667840985,-500.0,0.00015479,2]
[319333486,1710667840994,-500.0,0.00015479,2]
[319333487,1710667841002,-500.0,0.00015479,2]
[319333488,1710667841011,-500.0,0.00015479,2]
[319333489,1710667841020,-500.0,0.00015479,2]
[319333490,1710667841029,-500.0,0.00015479,2]
[319333491,1710667841038,-500.0,0.00015479,2]
[319333492,1710667841047,-500.0,0.00015479,2]
[319333493,1710667841056,-500.0,0.00015479,2]
[319333494,1710667841066,-500.0,0.00015479,2]
[319333495,1710667841075,-507.06223516,0.00015479,2]
[319333496,1710667841084,-376.53860265,0.00015479,2]
[319333497,1710667841094,-349.41111396,0.00015479,2]
[319333498,1710667841102,-500.0,0.00015479,2]
[319333499,1710667841111,-500.0,0.00015479,2]
[319333500,1710667841120,-512.42959903,0.00015479,2]
[319333501,1710667841129,-500.0,0.00015479,2]
[319333502,1710667841138,-500.0,0.00015479,2]
[319333503,1710667841146,-500.0,0.00015479,2]
[319333504,1710667841155,-500.0,0.00015479,2]
[319333505,1710667841164,-500.0,0.00015479,2]
[319333506,1710667841173,-500.0,0.00015479,2]
[319333507,1710667841183,-500.0,0.00015479,2]
[319333508,1710667841192,-501.59010953,0.00015479,2]
[319333509,1710667841201,-500.0,0.00015479,2]
[319333510,1710667841210,-500.0,0.00015479,2]
[319333511,1710667841219,-500.0,0.00015479,2]
[319333512,1710667841228,-500.0,0.00015479,2]
[319333513,1710667841237,-500.0,0.00015479,2]
[319333514,1710667841246,-500.0,0.00015479,2]
[319333515,1710667841256,-500.0,0.00015479,2]
[319333516,1710667841264,-500.0,0.00015479,2]
[319333517,1710667841274,-500.0,0.00015479,2]
[319333518,1710667841283,-500.0,0.00015479,2]
[319333519,1710667841292,-500.0,0.00015479,2]
[319333520,1710667841301,-500.0,0.00015479,2]
[319333521,1710667841311,-500.0,0.00015479,2]
[319333522,1710667841320,-500.0,0.00015479,2]
[319333523,1710667841329,-500.0,0.00015479,2]
[319333524,1710667841339,-500.0,0.00015479,2]
[319333525,1710667841348,-500.0,0.00015479,2]
[319333526,1710667841356,-500.0,0.00015479,2]
[319333527,1710667841366,-500.0,0.00015479,2]
[319333528,1710667841376,-500.0,0.00015479,2]
[319333529,1710667841385,-500.0,0.00015479,2]
[319333530,1710667841395,-500.0,0.00015479,2]
[319333531,1710667841405,-500.0,0.00015479,2]
[319333532,1710667841414,-500.0,0.00015479,2]
[319333533,1710667841423,-500.0,0.00015479,2]
[319333534,1710667841433,-500.0,0.00015479,2]
[319333535,1710667841444,-500.0,0.00015479,2]
[319333536,1710667841453,-500.0,0.00015479,2]
[319333537,1710667841462,-500.0,0.00015479,2]
[319333538,1710667841471,-500.0,0.00015479,2]
[319333539,1710667841481,-500.0,0.00015479,2]
[319333540,1710667841490,-500.0,0.00015479,2]
[319333541,1710667841499,-500.0,0.00015479,2]
[319333542,1710667841508,-500.0,0.00015479,2]
[319333543,1710667841517,-500.0,0.00015479,2]
[319333544,1710667841526,-500.0,0.00015479,2]
[319333545,1710667841535,-173.1586816,0.00015479,2]
[319333546,1710667841544,-500.0,0.00015479,2]
[319333547,1710667841553,-500.0,0.00015479,2]
[319333548,1710667841562,-500.0,0.00015479,2]
[319333549,1710667841571,-1776.55,0.00015479,2]
[319333550,1710667841580,-500.0,0.00015479,2]
[319333551,1710667841590,-500.0,0.00015479,2]
[319333552,1710667841600,-1776.55,0.00015479,2]
[319333553,1710667841608,-1776.55,0.00015479,2]
[319333554,1710667841617,-500.0,0.00015479,2]
[319333555,1710667841626,-500.0,0.00015479,2]
[319333556,1710667841635,-1776.55,0.00015479,2]
[319333557,1710667841644,-1776.55,0.00015479,2]
[319333558,1710667841653,-1776.55,0.00015479,2]
[319333559,1710667841662,-1776.55,0.00015479,2]
[319333560,1710667841670,-1776.55,0.00015479,2]
[319333561,1710667841679,-500.0,0.00015479,2]
[319333562,1710667841689,-500.0,0.00015479,2]
[319333563,1710667841698,-500.0,0.00015479,2]
[319333564,1710667841707,-500.0,0.00015479,2]
[319333565,1710667841716,-500.0,0.00015479,2]
[319333566,1710667841727,-500.0,0.00015479,2]
[319333567,1710667841736,-500.0,0.00015479,2]
[319333568,1710667841747,-500.0,0.00015479,2]
[319333569,1710667841756,-500.0,0.00015479,2]
[319333570,1710667841765,-500.0,0.00015479,2]
[319333571,1710667841775,-500.0,0.00015479,2]
[319333572,1710667841785,-500.0,0.00015479,2]
[319333573,1710667841794,-500.0,0.00015479,2]
[319333574,1710667841803,-161.70382207,0.00015479,2]
[319333575,1710667841813,-500.0,0.00015479,2]
[319333576,1710667841824,-500.0,0.00015479,2]
[319333577,1710667841833,-500.0,0.00015479,2]
[319333578,1710667841845,-500.0,0.00015479,2]
[319333579,1710667841853,-500.0,0.00015479,2]
[319333580,1710667841862,-496.26311417,0.00015479,2]
[319333581,1710667841871,-500.0,0.00015479,2]
[319333582,1710667841880,-500.0,0.00015479,2]
[319333583,1710667841889,-588.13320268,0.00015479,2]
[319333584,1710667841898,-500.0,0.00015479,2]
[319333585,1710667841907,-500.0,0.00015479,2]
[319333586,1710667841916,-583.74,0.00015479,2]
[319333587,1710667841925,-500.0,0.00015479,2]
[319333588,1710667841934,-583.74,0.00015479,2]
[319333589,1710667841943,-583.74,0.00015479,2]
[319333590,1710667841952,-583.74,0.00015479,2]
[319333591,1710667841961,-500.0,0.00015479,2]
[319333592,1710667841970,-583.74,0.00015479,2]
[319333593,1710667841979,-500.0,0.00015479,2]
[319333594,1710667841988,-583.74,0.00015479,2]
[319333595,1710667841996,-500.0,0.00015479,2]
[319333596,1710667842006,-583.74,0.00015479,2]
[319333597,1710667842015,-525.57785449,0.00015479,2]
[319333598,1710667842024,-500.0,0.00015479,2]
[319333599,1710667842034,-583.74,0.00015479,2]
[319333600,1710667842043,-500.0,0.00015479,2]
[319333601,1710667842052,-500.0,0.00015479,2]
[319333602,1710667842062,-500.0,0.00015479,2]
[319333603,1710667842071,-519.44020463,0.00015479,2]
[319333604,1710667842080,-353.49648632,0.00015479,2]
[319333605,1710667842090,-500.0,0.00015479,2]
[319333606,1710667842100,-500.0,0.00015479,2]
[319333607,1710667842109,-500.0,0.00015479,2]
[319333608,1710667842118,-500.0,0.00015479,2]
[319333609,1710667842127,-500.0,0.00015479,2]
[319333610,1710667842137,-500.0,0.00015479,2]
[319333611,1710667842146,-500.0,0.00015479,2]
[319333612,1710667842155,-500.0,0.00015479,2]
[319333613,1710667842165,-500.0,0.00015479,2]
[319333614,1710667842175,-500.0,0.00015479,2]
[319333615,1710667842185,-313.12422741,0.00015479,2]
[319333616,1710667842194,-500.0,0.00015479,2]
[319333617,1710667842203,-500.0,0.00015479,2]
[319333618,1710667842213,-500.0,0.00015479,2]
[319333619,1710667842223,-500.0,0.00015479,2]
[319333620,1710667842232,-500.0,0.00015479,2]
[319333621,1710667842242,-489.18780074,0.00015479,2]
[319333622,1710667842251,-500.0,0.00015479,2]
[319333623,1710667842260,-500.0,0.00015479,2]
[319333624,1710667842269,-500.0,0.00015479,2]
[319333625,1710667842279,-200.18735384,0.00015479,2]
[319333626,1710667842289,-261.68947885,0.00015479,2]
[319333627,1710667842298,-500.0,0.00015479,2]
[319333628,1710667842307,-500.0,0.00015479,2]
[319333629,1710667842457,-500.0,0.00015479,2]
[319333630,1710667842489,-500.0,0.00015479,2]
[319333631,1710667842499,-500.0,0.00015479,2]
[319333632,1710667842509,-500.0,0.00015479,2]
[319333633,1710667842518,-500.0,0.00015479,2]
[319333634,1710667842527,-530.51234744,0.00015479,2]
[319333635,1710667842537,-5072.188098,0.0001549,3]
[319333636,1710667842546,-5300.0,0.0001549,6]
[319333637,1710667842555,-500.0,0.00015495,2]
[319333638,1710667842565,-698.27,0.00015495,2]
[319333639,1710667842574,-25369.34329854,0.00015496,2]
[319333640,1710667842583,-1074.32913893,0.00015499,2]
[319333641,1710667842594,-155.0,0.000155,2]
[319333642,1710667842603,-600.0,0.000155,2]
[319333643,1710667842612,-507.53,0.00015577,2]
[319333644,1710667842621,-1384.38014986,0.00015659,2]
[319333645,1710667842631,-892.31727136,0.000157,2]
[319333646,1710667842640,-1400.0,0.00015727,2]
[319333647,1710667842649,-1507.77169,0.00015827,2]
[319333648,1710667842658,-167.05,0.00015831,2]
[319333649,1710667842667,-190.88982137,0.00015882,2]
[319333650,1710667842677,-205.584426,0.0001589,2]
[319333651,1710667842686,-179.77580742,0.00015948,2]
[319333652,1710667842695,-1481.56718636,0.00016,2]
[319333653,1710667842704,-892.31727136,0.0001602,2]
[319333654,1710667842713,-154.06805737,0.00016103,2]
[319333655,1710667842724,-522.72,0.00016113,2]
[319333656,1710667842740,-9999.99,0.00016116,2]
[319333657,1710667842749,-492.47,0.00016202,2]
[319333658,1710667842759,-150.35,0.00016204,2]
[319333659,1710667842768,-892.31727136,0.0001634,2]
[319333660,1710667842777,-190.88982137,0.00016385,2]
[319333661,1710667842786,-2000.0,0.000164,2]
[319333662,1710667842796,-500.0,0.00016438,2]
[319333663,1710667842804,-500.0,0.00016438,2]
[319333664,1710667842813,-500.0,0.00016438,2]
[319333665,1710667842823,-1231.7,0.00016438,2]
[319333667,1710667842833,-4000.0,0.00016438,2]
[319333669,1710667842844,-167.05,0.00016484,2]
[319333671,1710667842853,-150.71,0.00016487,2]
[319333673,1710667842862,-2801.83484244,0.000165,2]
[319333675,1710667842871,-2080.3,0.00016514,2]
[319333677,1710667842880,-239.65,0.00016514,2]
[319333679,1710667842889,-500.0,0.000166,2]
[319333681,1710667842898,-500.0,0.000166,2]
[319333683,1710667842907,-892.31727136,0.0001666,2]
[319333685,1710667842917,-205.584426,0.00016712,2]
[319333686,1710667842926,-213.02,0.00016712,2]
[319333688,1710667842935,-190.88982137,0.00016888,2]
[319333689,1710667842944,-892.31727136,0.0001698,2]
[319333690,1710667842954,-500.0,0.00016986,2]
[319333692,1710667842963,-500.0,0.00017,2]
[319333694,1710667842972,-507.81,0.00017,2]
[319333696,1710667842982,-600.0,0.00017,3]
[319333697,1710667842991,-751.0,0.00017,5]
[319333698,1710667843000,-232.56,0.00017001,2]
[319333699,1710667843011,-154.06805737,0.00017035,2]
[319333700,1710667843020,-152.0,0.00017059,3]
[319333701,1710667843030,-167.05,0.00017137,2]
[319333702,1710667843039,-500.0,0.00017148,2]
[319333703,1710667843049,-500.0,0.00017148,2]
[319333704,1710667843059,-600.0,0.000172,2]
[319333705,1710667843069,-25982.0,0.00017232,2]
[319333706,1710667843080,-500.0,0.00017235,2]
[319333708,1710667843092,-500.0,0.00017235,2]
[319333709,1710667843103,-500.0,0.00017235,2]
[319333711,1710667843113,-500.0,0.00017235,2]
[319333712,1710667843124,-2358.24,0.00017235,2]
[319333713,1710667843134,-1776.55,0.00017235,2]
[319333714,1710667843143,-583.74,0.00017235,2]
[319333715,1710667843152,-500.0,0.00017235,2]
[319333718,1710667843161,-154.45832824,0.00017245,2]
[319333719,1710667843170,-154.11102107,0.0001725,2]
[319333720,1710667843179,-153.30432521,0.0001727,2]
[319333721,1710667843189,-157.82775288,0.00017295,2]
[319333722,1710667843198,-246.62452627,0.00017297,2]
[319333723,1710667843207,-892.31727136,0.000173,2]
[319333724,1710667843216,-507.53,0.00017308,2]
[319333725,1710667843226,-2324.66052453,0.00017323,2]
[319333726,1710667843236,-152.0,0.00017339,4]
[319333727,1710667843246,-164.94775989,0.00017343,2]
[319333728,1710667843255,-151.16603036,0.00017361,2]
[319333729,1710667843265,-677.45940915,0.00017361,2]
[319333730,1710667843274,-300.0,0.0001737,2]
[319333731,1710667843284,-190.88982137,0.00017391,2]
[319333732,1710667843294,-151.16603036,0.0001741,2]
[319333733,1710667843304,-273.0924039,0.00017418,2]
[319333734,1710667843314,-1000.0,0.00017435,2]
[319333735,1710667843323,-2324.66052453,0.00017453,2]
[319333736,1710667843333,-273.0924039,0.00017459,2]
[319333737,1710667843343,-154.11102107,0.0001746,2]
[319333738,1710667843352,-246.62452627,0.00017461,2]
[319333739,1710667843361,-164.94775989,0.00017472,2]
[319333740,1710667843371,-568.51847232,0.00017488,2]
[319333741,1710667843380,-500.0,0.00017499,2]
[319333742,1710667843390,-500.0,0.00017499,2]
[319333744,1710667843400,-500.0,0.00017499,2]
[319333746,1710667843410,-500.0,0.00017499,2]
[319333748,1710667843419,-500.0,0.00017499,2]
[319333750,1710667843429,-500.0,0.00017499,2]
[319333752,1710667843439,-500.0,0.00017499,2]
[319333754,1710667843449,-500.0,0.00017499,2]
[319333756,1710667843458,-500.0,0.00017499,2]
[319333758,1710667843469,-2500.0,0.000175,2]
[319333760,1710667843479,-5149.19836934,0.000175,3]
[319333761,1710667843679,-19226.23665034,0.000175,3]
[319333762,1710667843691,-585.70767439,0.000175,3]
[319333763,1710667843753,290.96719633,0.00011585,2]
[319333764,1710667843809,-363.7051585,0.000175,3]
[319333765,1710667843821,-106140.22141881,0.000175,3]
[319333766,1710667843830,-154.11102107,0.00017513,2]
[319333767,1710667843841,-500.0,0.00017534,2]
[319333768,1710667843851,-205.584426,0.00017534,2]
[319333769,1710667843860,-151.16603036,0.00017605,2]
[319333770,1710667843870,-152.0,0.00017619,5]
[319333771,1710667843879,-892.31727136,0.0001762,2]
[319333772,1710667843888,-156.01973643,0.0001762,2]
[319333773,1710667843898,-677.45940915,0.00017622,2]
[319333774,1710667843907,-299.31663,0.00017685,2]
[319333775,1710667843917,-500.0,0.00017696,2]
[319333777,1710667843926,-2324.66052453,0.0001772,2]
[319333779,1710667843935,-246.62452627,0.0001772,2]
[319333781,1710667843945,-1550.68678013,0.00017777,2]
[319333783,1710667843954,-175.58196687,0.00017783,2]
[319333785,1710667843964,-167.05,0.00017791,2]
[319333786,1710667843973,-299.31663,0.00017795,2]
[319333787,1710667843982,-613.81,0.00017808,10]
[319333790,1710667843991,-150.9130171,0.0001781,2]
[319333791,1710667844000,-156.51853803,0.00017811,2]
[319333793,1710667844010,-677.45940915,0.00017819,2]
[319333795,1710667844019,-273.0924039,0.0001782,2]
[319333797,1710667844028,-3000.0,0.0001783,2]
[319333799,1710667844037,-156.51853803,0.00017844,2]
[319333800,1710667844046,-246.62452627,0.0001787,2]
[319333801,1710667844055,-246.62452627,0.00017872,2]
[319333802,1710667844064,-568.51847232,0.00017881,2]
[319333803,1710667844073,-277.61985739,0.00017884,2]
[319333804,1710667844082,-190.88982137,0.00017894,2]
[319333805,1710667844092,-152.0,0.00017899,6]
[319333806,1710667844102,-277.61985739,0.00017903,2]
[319333807,1710667844111,-1550.68678013,0.00017906,2]
[319333808,1710667844121,-173.37677938,0.00017908,2]
[319333809,1710667844131,-438.40524897,0.00017908,2]
[319333810,1710667844140,-155.0817669,0.00017912,2]
[319333811,1710667844150,-273.0924039,0.00017919,2]
[319333812,1710667844160,-151.16603036,0.00017935,2]
[319333813,1710667844173,-500.0,0.00017939,2]
[319333814,1710667844183,-698.27,0.00017939,2]
[319333815,1710667844193,-500.0,0.0001794,2]
[319333816,1710667844203,-500.0,0.0001794,2]
[319333817,1710667844212,-500.0,0.0001794,2]
[319333818,1710667844222,-500.0,0.0001794,2]
[319333819,1710667844231,-500.0,0.0001794,2]
[319333820,1710667844241,-500.0,0.0001794,2]
[319333821,1710667844250,-500.0,0.0001794,2]
[319333822,1710667844260,-500.0,0.0001794,2]
[319333823,1710667844269,-500.0,0.0001794,2]
[319333824,1710667844279,-540.03,0.0001794,2]
[319333825,1710667844288,-500.0,0.0001794,2]
[319333826,1710667844298,-512.79,0.0001794,2]
[319333827,1710667844307,-500.0,0.0001794,2]
[319333828,1710667844316,-500.0,0.0001794,2]
[319333829,1710667844326,-500.0,0.0001794,2]
[319333830,1710667844335,-500.0,0.0001794,2]
[319333831,1710667844346,-500.0,0.0001794,2]
[319333832,1710667844355,-500.0,0.0001794,2]
[319333833,1710667844365,-500.0,0.0001794,2]
[319333834,1710667844374,-500.0,0.0001794,2]
[319333835,1710667844383,-500.0,0.0001794,2]
[319333836,1710667844393,-500.0,0.0001794,2]
[319333837,1710667844402,-500.0,0.0001794,2]
[319333838,1710667844412,-500.0,0.0001794,2]
[319333839,1710667844421,-500.0,0.0001794,2]
[319333840,1710667844431,-500.0,0.0001794,2]
[319333841,1710667844440,-500.0,0.0001794,2]
[319333842,1710667844450,-500.0,0.0001794,2]
[319333843,1710667844459,-500.0,0.0001794,2]
[319333844,1710667844468,-500.0,0.0001794,2]
[319333845,1710667844477,-500.0,0.0001794,2]
[319333846,1710667844486,-500.0,0.0001794,2]
[319333847,1710667844495,-500.0,0.0001794,2]
[319333848,1710667844504,-500.0,0.0001794,2]
[319333849,1710667844514,-500.0,0.0001794,2]
[319333850,1710667844523,-500.0,0.0001794,2]
[319333851,1710667844531,-500.0,0.0001794,2]
[319333852,1710667844541,-500.0,0.0001794,2]
[319333853,1710667844551,-500.0,0.0001794,2]
[319333854,1710667844560,-500.0,0.0001794,2]
[319333855,1710667844569,-500.0,0.0001794,2]
[319333856,1710667844578,-500.0,0.0001794,2]
[319333857,1710667844588,-500.0,0.0001794,2]
[319333858,1710667844598,-500.0,0.0001794,2]
[319333859,1710667844607,-500.0,0.0001794,2]
[319333860,1710667844616,-500.0,0.0001794,2]
[319333861,1710667844625,-500.0,0.0001794,2]
[319333862,1710667844635,-500.0,0.0001794,2]
[319333863,1710667844644,-500.0,0.0001794,2]
[319333864,1710667844654,-500.0,0.0001794,2]
[319333865,1710667844663,-500.0,0.0001794,2]
[319333866,1710667844672,-500.0,0.0001794,2]
[319333867,1710667844681,-500.0,0.0001794,2]
[319333868,1710667844690,-500.0,0.0001794,2]
[319333869,1710667844699,-500.0,0.0001794,2]
[319333870,1710667844708,-500.0,0.0001794,2]
[319333871,1710667844764,-500.0,0.0001794,2]
[319333872,1710667844773,-500.0,0.0001794,2]
[319333873,1710667844782,-500.0,0.0001794,2]
[319333874,1710667844792,-500.0,0.0001794,2]
[319333875,1710667844801,-500.0,0.0001794,2]
[319333876,1710667844810,-500.0,0.0001794,2]
[319333877,1710667844820,-500.0,0.0001794,2]
[319333878,1710667844829,-500.0,0.0001794,2]
[319333879,1710667844838,-500.0,0.0001794,2]
[319333880,1710667844847,-500.0,0.0001794,2]
[319333881,1710667844856,-500.0,0.0001794,2]
[319333882,1710667844865,-500.0,0.0001794,2]
[319333883,1710667844874,-500.0,0.0001794,2]
[319333884,1710667844883,-500.0,0.0001794,2]
[319333885,1710667844892,-500.0,0.0001794,2]
[319333886,1710667844901,-500.0,0.0001794,2]
[319333887,1710667844910,-500.0,0.0001794,2]
[319333888,1710667844919,-500.0,0.0001794,2]
[319333889,1710667844928,-500.0,0.0001794,2]
[319333890,1710667844938,-500.0,0.0001794,2]
[319333891,1710667844947,-500.0,0.0001794,2]
[319333892,1710667844956,-500.0,0.0001794,2]
[319333893,1710667844965,-500.0,0.0001794,2]
[319333894,1710667844974,-500.0,0.0001794,2]
[319333895,1710667844982,-500.0,0.0001794,2]
[319333896,1710667844991,-500.0,0.0001794,2]
[319333897,1710667845000,-500.0,0.0001794,2]
[319333898,1710667845009,-500.0,0.0001794,2]
[319333899,1710667845018,-500.0,0.0001794,2]
[319333900,1710667845028,-500.0,0.0001794,2]
[319333901,1710667845036,-500.0,0.0001794,2]
[319333902,1710667845045,-500.0,0.0001794,2]
[319333903,1710667845054,-500.0,0.0001794,2]
[319333904,1710667845063,-500.0,0.0001794,2]
[319333905,1710667845072,-500.0,0.0001794,2]
[319333906,1710667845081,-500.0,0.0001794,2]
[319333907,1710667845090,-500.0,0.0001794,2]
[319333908,1710667845099,-500.0,0.0001794,2]
[319333909,1710667845110,-500.0,0.0001794,2]
[319333910,1710667845119,-500.0,0.0001794,2]
[319333911,1710667845128,-892.31727136,0.0001794,2]
[319333912,1710667845137,-568.51847232,0.00017947,2]
[319333913,1710667845145,-168.49322418,0.00017954,2]
[319333914,1710667845155,-154.06805737,0.00017968,2]
[319333915,1710667845164,-156.78245888,0.00017972,2]
[319333916,1710667845183,-277.61985739,0.00017977,2]
[319333917,1710667845192,-154.45832824,0.00017979,2]
[319333918,1710667845201,-290.61548803,0.00017999,2]
[319333919,1710667845211,-919.520167,0.00017999,2]
[319333920,1710667845220,-500.0,0.00017999,2]
[319333921,1710667845229,-500.0,0.00017999,2]
[319333922,1710667845239,-500.0,0.00017999,2]
[319333923,1710667845248,-500.0,0.00017999,2]
[319333924,1710667845257,-500.0,0.00017999,2]
[319333925,1710667845266,-500.0,0.00017999,2]
[319333926,1710667845276,-500.0,0.00017999,2]
[319333927,1710667845285,-500.0,0.00017999,2]
[319333928,1710667845295,-500.0,0.00017999,2]
[319333929,1710667845304,-500.0,0.00017999,2]
[319333930,1710667845314,-500.0,0.00017999,2]
[319333931,1710667845324,-500.0,0.00017999,2]
[319333932,1710667845333,-500.0,0.00017999,2]
[319333933,1710667845343,-2358.24,0.00017999,2]
[319333934,1710667845353,-646.69493839,0.00017999,2]
[319333935,1710667845362,-392.31641698,0.00017999,2]
[319333936,1710667845372,-500.0,0.00017999,2]
[319333937,1710667845381,-500.0,0.00017999,2]
[319333938,1710667845391,-500.0,0.00017999,2]
[319333939,1710667845400,-500.0,0.00017999,2]
[319333940,1710667845409,-566.56730038,0.00017999,2]
[319333941,1710667845419,-500.0,0.00017999,2]
[319333942,1710667845428,-280.83561235,0.00017999,2]
[319333943,1710667845437,-500.0,0.00017999,2]
[319333944,1710667845447,-500.0,0.00017999,2]
[319333945,1710667845455,-500.0,0.00017999,2]
[319333946,1710667845465,-1776.55,0.00017999,2]
[319333947,1710667845474,-583.74,0.00017999,2]
[319333948,1710667845483,-500.0,0.00017999,2]